bitfinex/quotes_SOLUSD_20220113
["timestamp","ask_amount","ask_price","bid_price","bid_amount"]
[1642079525469,412.64495575,154.36,154.27,15.9709]
[1642079525662,412.64495575,154.36,154.27,9.9709]
[1642079526464,412.64495575,154.36,154.27,15.9709]
[1642079526863,412.64495575,154.36,154.27,16.2309]
[1642079527465,12.3095,154.4,154.27,16.2309]
[1642079527764,12.3095,154.4,154.27,15.9709]
[1642079527967,18.5595,154.4,154.27,15.9709]
[1642079528164,18.8195,154.4,154.27,15.9709]
[1642079529765,18.8195,154.4,154.27,9.9709]
[1642079530167,72.95,154.39,154.27,9.9709]
[1642079530366,2.591,154.38,154.27,9.9709]
[1642079530569,9.7212,154.34,154.27,9.9709]
[1642079530967,9.7212,154.34,154.27,9.7209]
[1642079531669,2.592,154.33,154.27,9.7209]
[1642079531868,12.3137,154.33,154.27,9.7209]
[1642079532268,9.7217,154.33,154.27,9.7209]
[1642079533971,9.7217,154.33,154.27,9.9709]
[1642079534372,2.592,154.36,154.27,9.9709]
[1642079534575,1.79883364,154.37,154.27,9.9709]
[1642079535171,10.39083364,154.4,154.27,9.9709]
[1642079535575,10.65083364,154.4,154.27,9.9709]
[1642079535772,10.39083364,154.4,154.27,9.9709]
[1642079535971,10.39083364,154.4,154.27,15.9709]
[1642079536174,74.8891,154.38,154.27,15.7209]
[1642079536372,74.8891,154.38,154.27,9.7209]
[1642079536573,15.7191,154.38,154.27,9.7209]
[1642079537574,15.7191,154.38,154.27,9.9709]
[1642079539779,15.7191,154.38,154.27,11.16664825]
[1642079540377,15.7191,154.38,154.27,9.9709]
[1642079540578,2.591,154.37,154.27,9.7209]
[1642079540779,9.7212,154.33,154.27,9.7209]
[1642079542078,15.7212,154.33,154.27,9.7209]
[1642079543078,15.7212,154.33,154.27,9.9709]
[1642079543581,9.7207,154.34,154.27,9.9709]
[1642079543981,15.7207,154.34,154.27,9.9709]
[1642079544481,15.7207,154.34,154.27,9.7209]
[1642079544882,15.9807,154.34,154.27,9.7209]
[1642079545083,6.0,154.34,154.27,9.7209]
[1642079545282,2.592,154.36,154.27,9.9709]
[1642079545484,4.39083364,154.37,154.27,9.9709]
[1642079545786,1.79883364,154.37,154.27,9.9709]
[1642079546188,9.7194,154.36,154.27,9.9709]
[1642079546986,9.9794,154.36,154.27,9.9709]
[1642079547285,9.7194,154.36,154.27,9.9709]
[1642079547486,11.51823364,154.36,154.27,9.9709]
[1642079547687,1.79883364,154.36,154.27,9.9709]
[1642079547888,1.79883364,154.36,154.27,15.9709]
[1642079548090,1.79883364,154.36,154.27,9.9709]
[1642079548291,1.79883364,154.36,154.27,15.9709]
[1642079548494,1.79883364,154.35,154.27,15.9709]
[1642079550089,1.79883364,154.35,154.27,75.1409]
[1642079550292,1.79883364,154.35,154.27,90.11664825]
[1642079550491,1.79883364,154.35,154.27,96.0039868]
[1642079550689,3.4590744,154.39,154.29,65.17]
[1642079550911,3.4590744,154.39,154.28,100.3733008]
[1642079550912,3.4590744,154.39,154.34,9.7132]
[1642079551119,3.4590744,154.42,154.34,9.9632]
[1642079551317,3.4590744,154.42,154.34,16.2232]
[1642079552516,3.4590744,154.45,154.34,16.2232]
[1642079553316,9.713,154.46,154.34,16.2232]
[1642079553524,3.4590744,154.47,154.35,9.33]
[1642079553717,3.4590744,154.47,154.41,9.7117]
[1642079554117,3.4590744,154.47,154.41,9.9617]
[1642079554318,30.1377744,154.49,154.41,9.9617]
[1642079554521,21.7601744,154.49,154.41,9.9617]
[1642079555226,18.3011,154.49,154.41,9.9617]
[1642079555427,17.0111,154.49,154.41,9.9617]
[1642079555733,7.3,154.49,154.41,9.9617]
[1642079556327,6.0,154.49,154.41,9.9617]
[1642079556529,81.5411,154.5,154.41,9.9617]
[1642079556727,12.3001,154.49,154.41,9.9817]
[1642079556928,12.3001,154.49,154.41,10.0017]
[1642079557130,18.5601,154.49,154.41,10.0017]
[1642079558328,6.26,154.49,154.41,10.0017]
[1642079558529,0.26,154.49,154.41,10.0017]
[1642079558730,6.26,154.49,154.41,10.0017]
[1642079558930,11.55776507,154.52,154.41,16.0017]
[1642079559130,2.589,154.52,154.41,10.0017]
[1642079559331,2.589,154.52,154.41,16.0017]
[1642079559529,2.589,154.52,154.41,10.0017]
[1642079560129,12.2981,154.52,154.41,16.0017]
[1642079560329,9.7091,154.52,154.42,2.589]
[1642079560530,9.7091,154.52,154.46,9.7087]
[1642079560730,36.6888,154.54,154.46,9.7087]
[1642079560929,11.919,154.54,154.46,9.7087]
[1642079561132,17.919,154.54,154.46,9.7087]
[1642079561334,17.919,154.54,154.46,9.9587]
[1642079562331,21.6274,154.54,154.46,9.9587]
[1642079563131,19.0384,154.54,154.46,9.9587]
[1642079563935,9.7084,154.54,154.46,9.9587]
[1642079564232,72.9658,154.55,154.46,9.9587]
[1642079564833,103.0167,154.58,154.46,15.9587]
[1642079565032,31.9992,154.58,154.46,15.9587]
[1642079565234,2.588,154.58,154.46,25.2887]
[1642079565436,2.588,154.58,154.46,25.5487]
[1642079566233,2.588,154.58,154.52,9.7039]
[1642079566433,6.2214815,154.6,154.53,19.47966696]
[1642079566635,3.6334815,154.6,154.53,19.47966696]
[1642079566835,3.6334815,154.6,154.53,19.72966696]
[1642079567635,3.6334815,154.6,154.53,25.72966696]
[1642079567935,3.6334815,154.6,154.55,9.7032]
[1642079568335,3.6334815,154.6,154.55,9.9532]
[1642079568534,3.6334815,154.6,154.55,15.9532]
[1642079569834,3.6334815,154.6,154.55,9.9532]
[1642079570034,3.6334815,154.6,154.54,2.587]
[1642079570235,2.587,154.59,154.54,2.587]
[1642079570835,2.847,154.59,154.54,2.587]
[1642079571435,8.847,154.59,154.54,2.587]
[1642079571638,0.26,154.59,154.48,67.757]
[1642079571841,0.26,154.59,154.48,2.587]
[1642079572037,3.8934815,154.6,154.55,0.02]
[1642079572238,3.8934815,154.6,154.55,0.04]
[1642079574042,12.2919,154.59,154.55,0.04]
[1642079574243,12.2919,154.59,154.42,83.0586]
[1642079574445,0.60496669,154.58,154.45,9.33]
[1642079574643,2.588,154.57,154.43,2.588]
[1642079574844,2.588,154.57,154.42,108.78441909]
[1642079575044,9.33,154.56,154.42,32.90971909]
[1642079575244,9.33,154.56,154.43,9.7103]
[1642079575245,9.7087,154.53,154.43,9.7103]
[1642079575444,2.589,154.52,154.42,23.57971909]
[1642079575644,0.25,154.53,154.42,23.57971909]
[1642079575845,2.839,154.52,154.42,23.57971909]
[1642079576045,0.25,154.52,154.42,23.57971909]
[1642079576248,9.7107,154.5,154.41,9.7115]
[1642079576446,2.589,154.49,154.41,9.7115]
[1642079576648,9.7107,154.5,154.41,9.9615]
[1642079576846,2.589,154.51,154.41,9.9615]
[1642079577048,131.0185,154.55,154.42,2.589]
[1642079577270,128.4295,154.55,154.43,17.28096965]
[1642079577467,2.589,154.54,154.43,17.79096965]
[1642079577667,2.589,154.54,154.43,17.53096965]
[1642079577868,9.7085,154.53,154.43,17.53096965]
[1642079578070,2.589,154.52,154.43,17.53096965]
[1642079578270,2.589,154.53,154.43,17.53096965]
[1642079578473,2.589,154.54,154.39,11.919]
[1642079578671,2.589,154.52,154.42,0.25]
[1642079578872,8.839,154.54,154.42,0.25]
[1642079579271,8.839,154.54,154.39,11.919]
[1642079579471,12.19013421,154.52,154.4,9.7124]
[1642079579776,2.589,154.51,154.4,9.7124]
[1642079579972,2.839,154.51,154.4,9.7124]
[1642079580174,8.839,154.51,154.4,9.7124]
[1642079581172,9.7126,154.47,154.4,9.7124]
[1642079581373,41.2143,154.51,154.4,9.7124]
[1642079581576,40.9643,154.51,154.4,9.9624]
[1642079581774,3.4590744,154.55,154.43,0.30344285]
[1642079581974,3.4590744,154.55,154.44,2.589]
[1642079582175,9.7092,154.53,154.42,2.589]
[1642079582575,2.40183849,154.52,154.42,2.589]
[1642079582776,2.589,154.51,154.38,24.75004174]
[1642079582975,9.099,154.51,154.39,0.25]
[1642079583176,9.099,154.51,154.39,9.7139]
[1642079583177,18.429,154.51,154.39,9.7139]
[1642079583375,9.7136,154.46,154.33,3.78474825]
[1642079583583,2.59,154.45,154.31,2.59]
[1642079583776,2.59,154.45,154.3,2.59]
[1642079583777,77.09,154.45,154.3,2.59]
[1642079583978,0.72296455,154.44,154.29,2.591]
[1642079584178,2.591,154.43,154.27,2.591]
[1642079584376,9.7179,154.39,154.27,2.591]
[1642079584578,11.921,154.38,154.27,2.591]
[1642079584980,18.171,154.38,154.27,2.591]
[1642079585777,9.7215,154.34,154.27,2.591]
[1642079585977,2.592,154.33,154.27,0.0001]
[1642079586180,89.0,154.32,154.18,9.33]
[1642079586378,89.0,154.32,154.19,2.593]
[1642079586579,2.593,154.31,154.17,2.593]
[1642079586979,2.593,154.31,154.2,23.1645508]
[1642079587180,2.593,154.41,154.21,9.33]
[1642079587481,114.2797,154.4,154.21,35.88317439]
[1642079587678,114.2797,154.4,154.22,22.29451881]
[1642079587879,117.7387744,154.4,154.23,11.922]
[1642079588080,127.4568744,154.4,154.3,9.7181]
[1642079588279,2.591,154.39,154.3,9.7181]
[1642079588479,8.591,154.39,154.26,2.591]
[1642079588680,16.361,154.39,154.25,2.592]
[1642079588881,16.361,154.39,154.24,0.25]
[1642079589081,75.531,154.39,154.24,2.592]
[1642079589282,9.7197,154.37,154.26,9.7211]
[1642079589581,9.9697,154.37,154.26,26.688892]
[1642079589985,9.7197,154.37,154.26,26.688892]
[1642079590483,2.591,154.39,154.27,1.19574825]
[1642079590685,72.701,154.41,154.32,9.7175]
[1642079590884,494.63360186,154.45,154.33,16.92165837]
[1642079591091,502.40360186,154.45,154.33,17.17165837]
[1642079591491,502.40360186,154.45,154.33,18.36740662]
[1642079591888,494.63360186,154.45,154.36,9.715]
[1642079592089,494.63360186,154.45,154.36,9.965]
[1642079592291,75.7373,154.47,154.36,9.965]
[1642079592292,2.59,154.47,154.37,1.19574825]
[1642079592490,2.59,154.51,154.37,1.70574825]
[1642079592687,510.55607729,154.53,154.38,7.77]
[1642079592888,510.55607729,154.53,154.38,8.96574825]
[1642079593090,510.55607729,154.53,154.44,9.7104]
[1642079593288,510.55607729,154.53,154.45,17.39843193]
[1642079593489,510.55607729,154.53,154.45,17.64843193]
[1642079593887,2.589,154.57,154.45,17.64843193]
[1642079594088,9.7076,154.56,154.48,9.7078]
[1642079594589,9.9676,154.56,154.48,9.7078]
[1642079594991,15.7076,154.56,154.48,9.7078]
[1642079595389,9.7076,154.56,154.48,9.7078]
[1642079595591,9.7076,154.56,154.48,9.9578]
[1642079596390,9.707,154.57,154.48,9.9578]
[1642079598594,9.957,154.57,154.48,9.7078]
[1642079598793,2.588,154.56,154.48,9.7078]
[1642079598993,12.2958,154.56,154.48,9.7078]
[1642079599194,9.7078,154.56,154.48,9.7078]
[1642079599396,9.9578,154.56,154.48,9.7078]
[1642079599598,9.9578,154.56,154.44,1.19574825]
[1642079599798,10.358,154.55,154.37,7.77]
[1642079599999,9.7124,154.48,154.37,7.77]
[1642079600400,2.59,154.51,154.38,19.95238077]
[1642079600600,8.59,154.51,154.38,19.95238077]
[1642079600800,2.59,154.51,154.42,9.7119]
[1642079601000,9.7107,154.5,154.42,9.7119]
[1642079601401,2.589,154.53,154.43,1.19574825]
[1642079601599,8.589,154.53,154.43,1.19574825]
[1642079601800,2.589,154.53,154.43,0.25]
[1642079602000,8.589,154.53,154.39,15.47574825]
[1642079602209,6.0,154.53,154.39,15.47574825]
[1642079602601,0.26,154.53,154.39,15.47574825]
[1642079603003,8.839,154.54,154.39,15.47574825]
[1642079603202,9.7108,154.5,154.39,15.47574825]
[1642079603419,15.7108,154.5,154.39,9.21574825]
[1642079603620,15.7108,154.5,154.39,7.77]
[1642079603920,6.0,154.5,154.4,1.19574825]
[1642079604121,12.298,154.53,154.42,9.712]
[1642079604321,2.589,154.53,154.42,9.712]
[1642079604520,2.589,154.53,154.42,16.90774825]
[1642079604521,6.0,154.53,154.42,16.90774825]
[1642079604722,6.0480744,154.57,154.42,16.90774825]
[1642079604922,12.0480744,154.57,154.42,17.15774825]
[1642079605322,9.7084,154.54,154.42,17.15774825]
[1642079605926,9.7084,154.54,154.42,11.15774825]
[1642079606623,9.7084,154.54,154.42,24.33033284]
[1642079606824,2.589,154.57,154.5,9.7052]
[1642079607025,1.7514676,154.58,154.5,9.9552]
[1642079609023,1.7514676,154.58,154.5,15.9552]
[1642079609225,3.6334815,154.6,154.52,89.0]
[1642079609424,3.6334815,154.6,154.56,9.6993]
[1642079609625,2.6334815,154.6,154.57,26.21015993]
[1642079610026,2.6334815,154.6,154.57,33.65590818]
[1642079610226,2.6334815,154.6,154.57,9.21574825]
[1642079610426,2.6334815,154.6,154.58,9.6994]
[1642079610939,2.6334815,154.6,154.58,9.9494]
[1642079612142,2.6334815,154.6,154.59,17.11979181]
[1642079612340,2.6334815,154.6,154.59,26.81989181]
[1642079612539,2.6334815,154.6,154.59,27.06989181]
[1642079613141,2.6334815,154.6,154.59,26.81989181]
[1642079613542,2.6334815,154.6,154.59,9.7001]
[1642079614346,2.6334815,154.6,154.58,9.702]
[1642079615081,2.6334815,154.6,154.59,5.0]
[1642079615482,100.28278143,154.6,154.59,0.0001]
[1642079615886,11.28278143,154.6,154.59,0.0001]
[1642079616084,2.587,154.64,154.59,30.31153894]
[1642079616282,2.587,154.69,154.59,38.08649075]
[1642079616486,2.587,154.72,154.59,38.96429627]
[1642079616683,2.586,154.68,154.59,37.7701]
[1642079616882,3.06959411,154.71,154.59,37.7701]
[1642079616883,3.06959411,154.71,154.59,17.4713]
[1642079617084,2.586,154.7,154.59,17.4713]
[1642079617284,2.586,154.7,154.59,17.7213]
[1642079617483,18.2857,154.7,154.59,17.7213]
[1642079617683,18.5357,154.7,154.59,17.7213]
[1642079618083,83.7057,154.7,154.59,17.7213]
[1642079618284,83.7057,154.7,154.59,9.9513]
[1642079618484,83.9657,154.7,154.59,9.9513]
[1642079618883,83.9657,154.7,154.59,0.0001]
[1642079619084,91.7357,154.7,154.59,0.0001]
[1642079619285,143.1977,154.7,154.59,0.0001]
[1642079619484,1.64999521,154.69,154.59,0.0001]
[1642079619684,9.7059,154.64,154.59,0.0001]
[1642079619886,10.357,154.63,154.59,0.0001]
[1642079620085,16.607,154.63,154.59,0.0001]
[1642079620586,16.357,154.63,154.59,0.0001]
[1642079620786,2.587,154.63,154.59,0.0001]
[1642079621185,2.587,154.68,154.59,0.0001]
[1642079621786,8.587,154.68,154.59,0.0001]
[1642079622190,18.2886,154.68,154.59,9.7011]
[1642079623289,18.5386,154.68,154.59,9.7011]
[1642079624290,18.2886,154.68,154.59,9.7011]
[1642079624489,6.0,154.68,154.59,9.9511]
[1642079624889,42.632,154.7,154.59,9.9511]
[1642079625289,40.046,154.7,154.59,9.9511]
[1642079625489,40.296,154.7,154.59,9.9511]
[1642079626489,40.296,154.7,154.59,9.7011]
[1642079626690,105.466,154.7,154.59,9.7011]
[1642079626990,40.296,154.7,154.59,9.7011]
[1642079627390,105.466,154.7,154.59,9.7011]
[1642079627590,9.7019,154.67,154.59,0.0001]
[1642079627991,75.1219,154.67,154.59,0.0001]
[1642079628492,81.3819,154.67,154.59,0.0001]
[1642079628892,16.2119,154.67,154.59,0.0001]
[1642079629292,18.5379,154.67,154.59,0.0001]
[1642079630595,18.7979,154.67,154.59,0.0001]
[1642079630996,18.5379,154.67,154.59,0.0001]
[1642079631998,26.3079,154.67,154.59,0.0001]
[1642079632599,33.4019,154.67,154.59,0.0001]
[1642079632999,33.6619,154.67,154.59,0.0001]
[1642079633928,26.5679,154.67,154.59,0.0001]
[1642079634330,65.17,154.66,154.59,0.0001]
[1642079634544,9.7058,154.63,154.59,0.0001]
[1642079634933,15.9558,154.63,154.59,0.0001]
[1642079639933,16.2158,154.63,154.59,0.0001]
[1642079640534,15.9558,154.63,154.59,0.0001]
[1642079641135,3.4590744,154.65,154.59,0.0001]
[1642079641734,3.4590744,154.65,154.6,1.19419627]
[1642079641936,3.4590744,154.68,154.6,1.19419627]
[1642079642235,3.4590744,154.68,154.61,2.586]
[1642079643335,13.1583744,154.7,154.62,9.6989]
[1642079643534,9.4590744,154.7,154.62,9.9489]
[1642079643734,9.4590744,154.7,154.63,2.586]
[1642079643935,9.4590744,154.7,154.62,0.25]
[1642079644137,9.4590744,154.7,154.63,0.25]
[1642079644334,6.0,154.7,154.64,9.6983]
[1642079644535,9.4590744,154.71,154.64,9.6983]
[1642079645535,9.7090744,154.71,154.64,9.6983]
[1642079645736,6.25,154.71,154.64,9.6983]
[1642079646134,0.25,154.71,154.64,9.6983]
[1642079646336,6.51,154.71,154.63,9.699]
[1642079646739,15.9486,154.71,154.63,9.699]
[1642079646936,6.25,154.71,154.63,9.699]
[1642079647137,6.0,154.71,154.63,9.699]
[1642079647339,12.0450744,154.72,154.63,9.949]
[1642079647538,9.7090744,154.72,154.63,9.699]
[1642079647739,2.6891566,154.71,154.59,19.82024637]
[1642079647939,2.6891566,154.71,154.59,27.84024637]
[1642079648137,2.6891566,154.71,154.59,8.0201]
[1642079648138,8.9391566,154.71,154.59,8.0201]
[1642079648537,12.398231,154.71,154.59,8.0201]
[1642079648938,9.6998,154.69,154.59,0.0001]
[1642079649137,10.356,154.68,154.59,0.0001]
[1642079649342,65.17,154.67,154.59,0.0001]
[1642079649536,2.586,154.66,154.59,0.0001]
[1642079649737,10.356,154.66,154.59,0.0001]
[1642079649938,16.606,154.66,154.59,0.0001]
[1642079650536,81.776,154.66,154.59,0.0001]
[1642079651137,9.7048,154.64,154.59,0.0001]
[1642079651538,15.9548,154.64,154.59,0.0001]
[1642079651942,15.7048,154.64,154.59,0.0001]
[1642079653139,9.7019,154.65,154.59,0.0001]
[1642079654142,45.6634,154.67,154.59,0.0001]
[1642079654546,6.0,154.67,154.59,9.7015]
[1642079654942,11.897,154.68,154.59,9.7015]
[1642079655144,9.31,154.68,154.59,9.7015]
[1642079655843,9.57,154.68,154.59,9.7015]
[1642079656045,9.82,154.68,154.59,9.7015]
[1642079656244,0.26,154.68,154.59,9.9515]
[1642079656543,9.4590744,154.69,154.59,15.9515]
[1642079656743,3.4590744,154.69,154.59,15.9515]
[1642079657146,13.1582744,154.69,154.59,15.9515]
[1642079657343,9.6992,154.69,154.59,15.9515]
[1642079657945,6.0,154.69,154.59,15.9515]
[1642079658146,6.0,154.69,154.6,2.586]
[1642079658446,169.8999744,154.7,154.63,9.6988]
[1642079658650,0.26,154.69,154.63,9.6988]
[1642079658848,19.4076744,154.7,154.63,9.6988]
[1642079659048,19.6676744,154.7,154.63,9.6988]
[1642079659847,19.6676744,154.7,154.62,9.6996]
[1642079660348,16.2086,154.7,154.62,9.6996]
[1642079663849,16.2086,154.7,154.61,9.7004]
[1642079664051,2.586,154.69,154.61,9.7004]
[1642079664250,9.7004,154.67,154.61,9.7004]
[1642079664853,9.7004,154.67,154.6,9.7009]
[1642079665052,9.9504,154.67,154.59,0.0001]
[1642079665253,15.9504,154.67,154.59,0.0001]
[1642079666052,18.5364,154.67,154.59,0.0001]
[1642079667955,18.7964,154.67,154.59,0.0001]
[1642079668354,18.7964,154.67,154.59,9.7017]
[1642079668754,10.2104,154.67,154.59,9.7017]
[1642079668956,9.9604,154.67,154.59,9.9517]
[1642079669354,9.9604,154.67,154.59,9.7017]
[1642079669555,15.9604,154.67,154.59,9.7017]
[1642079669758,16.2104,154.67,154.59,9.7017]
[1642079669956,15.9504,154.67,154.59,9.7017]
[1642079671160,1.84981947,154.65,154.59,9.7017]
[1642079671361,11.55161947,154.65,154.59,9.7017]
[1642079671559,11.55161947,154.65,154.59,0.0001]
[1642079671760,17.80161947,154.65,154.59,0.0001]
[1642079671960,1.84981947,154.64,154.59,0.0001]
[1642079672561,11.55221947,154.64,154.59,0.0001]
[1642079672961,17.55221947,154.64,154.59,0.0001]
[1642079673161,11.55221947,154.64,154.59,0.0001]
[1642079673361,17.55221947,154.64,154.59,0.0001]
[1642079673661,11.55221947,154.64,154.59,0.0001]
[1642079674063,1.84981947,154.64,154.59,0.0001]
[1642079675191,1.84981947,154.65,154.59,0.0001]
[1642079675391,0.26,154.64,154.59,0.0001]
[1642079675590,2.10981947,154.65,154.59,0.0001]
[1642079676192,1.84981947,154.65,154.59,9.7016]
[1642079676594,1.84981947,154.65,154.59,9.9516]
[1642079676891,1.84981947,154.65,154.6,3.78019627]
[1642079677091,1.84981947,154.66,154.6,4.03019627]
[1642079677291,1.84981947,154.66,154.61,22.96470993]
[1642079677494,1.84981947,154.66,154.61,29.21470993]
[1642079677693,1.84981947,154.66,154.62,9.6971]
[1642079677993,1.84981947,154.66,154.61,21.77051366]
[1642079678192,1.84981947,154.66,154.59,0.0001]
[1642079678392,1.84981947,154.66,154.63,1.19419627]
[1642079678594,8.96876507,154.71,154.65,66.0]
[1642079678796,3.4590744,154.71,154.66,2.585]
[1642079678993,3.4590744,154.71,154.66,3.77919627]
[1642079679194,3.70021735,154.73,154.67,22.47599351]
[1642079679696,382.85412803,154.79,154.67,27.53179724]
[1642079679895,380.26912803,154.79,154.67,27.53179724]
[1642079680098,380.51912803,154.79,154.67,27.53179724]
[1642079680295,9.6931,154.78,154.68,9.6931]
[1642079680497,15.6931,154.78,154.68,9.9431]
[1642079680899,9.6931,154.78,154.68,9.9431]
[1642079681596,390.21152803,154.79,154.68,9.9431]
[1642079681798,390.21152803,154.79,154.68,76.30729627]
[1642079681799,380.51912803,154.79,154.68,76.30729627]
[1642079681995,2.585,154.8,154.68,82.56729627]
[1642079682217,27.1286,154.82,154.69,2.584]
[1642079682407,27.1286,154.82,154.75,9.691]
[1642079682611,8.834,154.82,154.75,9.691]
[1642079683211,9.6913,154.81,154.75,9.691]
[1642079683608,15.6913,154.81,154.69,45.4655]
[1642079683808,2.584,154.8,154.66,9.31]
[1642079684009,8.584,154.8,154.66,9.31]
[1642079684409,0.46761021,154.79,154.66,9.31]
[1642079684610,2.585,154.78,154.66,9.31]
[1642079685009,8.845,154.78,154.66,9.31]
[1642079685213,9.6943,154.76,154.69,9.6951]
[1642079685610,15.6943,154.76,154.69,9.6951]
[1642079686010,15.9443,154.76,154.64,2.585]
[1642079686211,2.585,154.75,154.64,2.585]
[1642079686411,9.6977,154.71,154.65,9.6977]
[1642079687212,44.2207,154.75,154.65,9.6977]
[1642079687612,50.4707,154.75,154.65,9.6977]
[1642079687816,9.6969,154.72,154.64,12.2834]
[1642079688013,2.585,154.71,154.64,9.6984]
[1642079688213,2.585,154.71,154.6,9.31]
[1642079688414,2.835,154.71,154.6,9.56]
[1642079688613,3.095,154.71,154.6,9.56]
[1642079688812,0.51,154.71,154.6,27.41012598]
[1642079689013,0.25,154.71,154.6,27.41012598]
[1642079689515,5.75319283,154.73,154.6,27.41012598]
[1642079689913,3.096,154.73,154.62,9.6991]
[1642079690115,2.846,154.73,154.62,9.9491]
[1642079690516,3.096,154.73,154.62,9.9491]
[1642079690915,2.846,154.73,154.62,15.9491]
[1642079691118,0.26,154.73,154.63,2.586]
[1642079691413,9.6967,154.72,154.65,9.6973]
[1642079691814,15.9567,154.72,154.65,9.6973]
[1642079692817,15.6967,154.72,154.65,9.6973]
[1642079693915,15.6967,154.72,154.64,9.6982]
[1642079694518,15.9467,154.72,154.64,9.6982]
[1642079695119,15.6967,154.72,154.64,9.9482]
[1642079695319,9.6959,154.73,154.64,9.9482]
[1642079695516,2.585,154.77,154.64,9.9482]
[1642079695717,695.31996626,154.78,154.65,2.585]
[1642079695916,6.0,154.77,154.69,9.6953]
[1642079696116,695.31996626,154.78,154.69,9.6953]
[1642079696117,565.23276626,154.78,154.69,9.6953]
[1642079696317,565.23276626,154.78,154.66,23.60889072]
[1642079696617,9.6955,154.74,154.66,23.85889072]
[1642079696817,9.6955,154.74,154.66,23.60889072]
[1642079697419,9.6955,154.74,154.66,23.85889072]
[1642079697619,9.6955,154.74,154.66,0.25]
[1642079697620,15.9555,154.74,154.66,0.25]
[1642079697823,15.9555,154.74,154.64,2.585]
[1642079698021,15.9555,154.74,154.64,12.145]
[1642079698221,15.9555,154.74,154.67,9.6961]
[1642079698620,9.6955,154.74,154.67,32.66426327]
[1642079698821,9.6947,154.75,154.67,32.91426327]
[1642079700327,6.0,154.75,154.67,32.91426327]
[1642079700526,15.6943,154.76,154.67,32.91426327]
[1642079701325,15.6943,154.76,154.67,9.6961]
[1642079701524,15.9443,154.76,154.67,9.6961]
[1642079701925,15.9443,154.76,154.67,7.7814]
[1642079702126,16.2043,154.76,154.67,7.7814]
[1642079706632,15.9443,154.76,154.67,7.7814]
[1642079708335,15.9443,154.76,154.67,8.0314]
[1642079708536,15.9443,154.76,154.66,9.6972]
[1642079708736,2.585,154.75,154.62,44.2189]
[1642079708941,9.6977,154.71,154.62,44.2189]
[1642079709337,15.6977,154.71,154.62,41.6339]
[1642079709538,6.0,154.71,154.62,64.17620602]
[1642079709747,6.0,154.71,154.65,9.6977]
[1642079709939,8.585,154.75,154.65,9.6977]
[1642079710139,9.6964,154.73,154.65,9.9477]
[1642079710742,6.0,154.75,154.65,9.9477]
[1642079711441,0.87200708,154.74,154.65,9.9477]
[1642079711641,18.91570708,154.74,154.63,12.284]
[1642079711842,19.16570708,154.74,154.63,2.585]
[1642079712041,25.42570708,154.74,154.63,2.585]
[1642079712247,2.585,154.73,154.63,2.585]
[1642079712641,8.585,154.73,154.63,2.585]
[1642079712842,2.585,154.73,154.64,1.19406344]
[1642079713045,2.585,154.73,154.65,11.895]
[1642079713541,2.585,154.73,154.66,1.19406344]
[1642079713741,2.585,154.73,154.67,2.585]
[1642079713946,2.585,154.73,154.67,2.835]
[1642079714143,2.585,154.73,154.68,9.6957]
[1642079714346,556.64776626,154.78,154.69,2.585]
[1642079714544,5.50969067,154.84,154.69,2.835]
[1642079714944,15.31,154.82,154.69,2.835]
[1642079715145,2.52697292,154.81,154.69,2.835]